Cogmind - Beta 14 @@@ ROGUE MODE // 2024.09.11 @ 15:15:18 Player: jimmyl Result: Destroyed by G-47 Trooper with Particle Gun Performance ------------- Evolutions (0) 0 Regions Visited (2) 400 Robots Destroyed (9) 45 Value Destroyed (242) 242 Prototype IDs (0) 0 Alien Tech Used (0) 0 Bonus (0) 0 TOTAL SCORE: 687 Bonus ------- None Cogmind --------- Core Integrity 0/250 Matter 298/300 Energy 91/100 System Corruption 1% Temperature Cool (9) Movement Treading (160) Location -10/Mines Parts ------- > --- POWER (1) -------- (None) > --- PROPULSION (2) --- Light Treads > --- UTILITY (2) ------ Small Storage Unit Targeting Computer > --- WEAPON (2) ------- Small Laser Light Assault Rifle > --- INVENTORY (8) ---- Wheel Compact Wheel Improved Heat Sink Light Armor Plating Peak State ------------ > --- POWER ------------ Light Ion Engine > --- PROPULSION ------- Aluminum Leg Aluminum Leg > --- UTILITY ---------- Small Storage Unit Targeting Computer > --- WEAPON ----------- Medium Laser Assault Rifle > --- INVENTORY -------- Light Ion Engine Light Treads Light Treads Wheel Compact Wheel Improved Heat Sink Light Armor Plating Small Laser [Rating: 8] Favorites ----------- Power Light Ion Engine Engine Light Ion Engine Propulsion Light Treads Treads Light Treads Leg Aluminum Leg Utility Small Storage Unit Storage Small Storage Unit Processor Targeting Computer Protection Light Armor Plating Weapon Small Laser Energy Gun Small Laser Ballistic Gun Light Assault Rifle Build | -11 -10 -10 ------- Run | Yrd Mat Min Slots Evolved . | . . . Power . | . . . Propulsion . | . . . Utility . | . . . Weapon . | . . . Parts Attached 7 | . 2 5 Power 1 | . . 1 Engine 1 | . . 1 Core . | . . . Reactor . | . . . Propulsion 2 | . . 2 Treads 2 | . . 2 Leg . | . . . Wheel . | . . . Hover . | . . . Flight . | . . . Utility 2 | . 2 . Device . | . . . Storage . | . . . Processor 1 | . 1 . Hackware . | . . . Protection 1 | . 1 . Artifact . | . . . Weapon 2 | . . 2 Energy Gun 1 | . . 1 Energy Cannon . | . . . Ballistic Gun 1 | . . 1 Ballistic Cannon . | . . . Launcher . | . . . Special Weapon . | . . . Impact Weapon . | . . . Slashing Weapon . | . . . Piercing Weapon . | . . . Special Melee Weapon . | . . . Unidentified Prototypes . | . . . Parts Lost 7 | . . 7 Power 2 | . . 2 Propulsion 3 | . . 3 Utility . | . . . Weapon 2 | . . 2 Highest Loss Streak 5 | . . 5 To Critical Strikes . | . . . Average Slot Usage (%) 95 | . 96 94 Engine 13 | . 14 13 Treads 17 | . . 23 Leg 10 | . 28 3 Storage 14 | . 14 14 Processor 12 | . 10 14 Energy Gun 14 | . 14 14 Ballistic Gun 11 | . 14 9 Peak Build Rating 8 | . 8 8 Average Rating 6 | . 7 6 On Entrance 6 | 6 6 8 Naked Turns . | . . . Heaviest Build 15 | 12 15 12 Greatest Support 40 | 20 20 40 Greatest Overweight (x) . | . . . Average Overweight (x) . | . . . Largest Inventory Capacity 8 | . 8 8 Average Capacity 8 | . 8 8 Most Carried 8 | . 8 8 Average Carried 5 | . 6 4 Final Capacity 8 | 8 8 8 Final Carried 8 | 6 8 4 Class Distribution -------------------- 100% | Mutant Dominant Class ---------------- Mutant | -10/Materials Mutant | -10/Mines Resources | -11 -10 -10 ----------- Run | Yrd Mat Min Matter Collected 314 | 200 41 73 Remotely . | . . . Salvage Created 354 | . 132 222 Parts 18 | . 9 9 Haulers Intercepted . | . . . Recyclers Shooed . | . . . Parts Field Recycled . | . . . Retrieved Matter . | . . . Parts Self-Destructed . | . . . Prevented . | . . . Kills | -11 -10 -10 ------- Run | Yrd Mat Min Combat Hostiles Destroyed 12 | . 2 10 Guns 12 | . 2 10 Classes Destroyed 4 | . 2 2 Watcher 1 | . 1 . Swarmer 3 | . . 3 Grunt 5 | . 2 3 Assembled 4 | . . 4 Best Kill Streak 3 | . 2 3 Combat Bots Only 3 | . 2 3 Max Kills in Single Turn 1 | . 1 1 Gunslinging . | . . . Exploded . | . . . Melee . | . . . Uniques/NPCs Destroyed . | . . . Combat | -11 -10 -10 -------- Run | Yrd Mat Min Hostile Shots Fired 93 | . 8 85 Missed 29 | . 4 25 Damage Taken 1048 | . 44 1004 Core 250 | . 11 239 Absorbed by Shields . | . . . Core Remaining (%) 100 | 100 . . Volleys Fired 54 | . 10 44 Largest 2 | . 2 2 Hottest 90 | . 70 90 Shots Fired 90 | . 19 71 Gun 90 | . 19 71 Cannon . | . . . Launcher . | . . . Special . | . . . Kinetic 41 | . 10 31 Thermal 49 | . 9 40 Explosive . | . . . Electromagnetic . | . . . Robot Hit Streak 20 | . 9 20 Robot Miss Streak 4 | . 2 4 Penetration Max . | . . . Secondary Targets 2 | . . 2 Max Gunslinging Chain 1 | . . 1 Shots Hit Robots 59 | . 12 47 Core Hits 30 | . 6 24 Critical Kills . | . . . Critical Parts Destroyed . | . . . Critical Strikes 3 | . 2 1 Burn 3 | . 2 1 Melee Attacks . | . . . Impact . | . . . Slashing . | . . . Piercing . | . . . Sneak Attacks . | . . . Combat Hostiles . | . . . Follow-up Attacks . | . . . Damage Inflicted 644 | . 154 490 Guns 631 | . 154 477 Cannons . | . . . Explosions . | . . . Melee . | . . . Ramming 13 | . . 13 Kinetic 289 | . 79 210 Thermal 342 | . 75 267 Explosive . | . . . Electromagnetic . | . . . Impact . | . . . Slashing . | . . . Piercing . | . . . Highest Corruption 1 | . 1 1 Average Corruption 1 | . 1 1 Corruption Purged . | . . . Corruption Blocked . | . . . Effects 2 | . . 2 Message Errors 1 | . . 1 Energy Discharges 1 | . . 1 Overload Shots . | . . . Overflow Damage . | . . . Projectiles . | . . . Explosions . | . . . Melee . | . . . Knockbacks . | . . . Impact . | . . . Kinetic . | . . . Secondary . | . . . Self-Inflicted Damage . | . . . Shots . | . . . Rammed 5 | . . 5 Targets Rammed 5 | . . 5 Kicked . | . . . Crushed . | . . . Highest Temperature 100 | . 63 100 Average Temperature 35 | . 25 39 Received Heat Transfer 257 | . 24 233 Siege Activations . | . . . Robots Corrupted . | . . . Combat Hostiles . | . . . Parts Fried . | . . . Impact Corruptions . | . . . Robots Melted . | . . . Combat Hostiles . | . . . Parts Melted 4 | . . 4 Heat Transferred 1092 | . 370 722 Parts Sabotaged . | . . . Parts Stolen . | . . . Parts Stripped . | . . . Power Chain Reactions . | . . . Alert | -11 -10 -10 ------- Run | Yrd Mat Min Peak Influence 160 | . 117 160 Initial 45 | . . 45 Average 102 | . 43 125 Maximum Alert Level . | . . . Low Security (%) 100 | . 100 100 Level 1 . | . . . Level 2 . | . . . Level 3 . | . . . Level 4 . | . . . Level 5 . | . . . High Security . | . . . Max Security . | . . . Squads Dispatched . | . . . Investigation . | . . . Extermination . | . . . Reinforcement . | . . . Assault . | . . . Garrison . | . . . Intercept . | . . . Searches Triggered . | . . . Construction Impeded . | . . . Haulers Reinforced . | . . . Active Scanning Responses . | . . . Cargo Convoy Interrupts . | . . . Stealth | -11 -10 -10 --------- Run | Yrd Mat Min Distress Signals . | . . . Communications Jammed . | . . . Distress Signals . | . . . Times Spotted 29 | . 6 23 Peak Tracking Total 12 | . 3 12 Tactical Retreats . | . . . Traps | -11 -10 -10 ------- Run | Yrd Mat Min Traps Triggered 1 | . 1 . Indirectly . | . . . Trap Hack Attempts . | . . . Triggered . | . . . Disarmed . | . . . Reprogrammed . | . . . Reused . | . . . Traps Extracted . | . . . Installed . | . . . Triggered . | . . . Machines | -11 -10 -10 ---------- Run | Yrd Mat Min Machines Disabled . | . . . Max in Single Turn . | . . . Machines Repaired . | . . . Machines Dismantled . | . . . Machines Sabotaged . | . . . Overloaded Fab Kills . | . . . Hacking | -11 -10 -10 --------- Run | Yrd Mat Min Machines Accessed 1 | . 1 . Terminals 1 | . 1 . Fabricators . | . . . Repair Stations . | . . . Recycling Units . | . . . Scanalyzers . | . . . Garrison Access . | . . . Total Hacks 4 | . 4 . Successful 3 | . 3 . Failed 1 | . 1 . Catastrophic . | . . . Database Lockouts . | . . . Manual . | . . . Terminals 4 | . 4 . Fabricators . | . . . Repair Stations . | . . . Recycling Units . | . . . Scanalyzers . | . . . Garrison Access . | . . . Terminal Hacks 3 | . 3 . Locate Traps 1 | . 1 . Dispatch Records 1 | . 1 . Hauler Manifests 1 | . 1 . Fabricator Hacks . | . . . Repair Station Hacks . | . . . Recycling Unit Hacks . | . . . Scanalyzer . | . . . Garrison Access Hacks . | . . . Unauthorized Hacks . | . . . Terminals . | . . . Fabricators . | . . . Repair Stations . | . . . Recycling Units . | . . . Scanalyzers . | . . . Garrison Access . | . . . Data Cores Recovered . | . . . Used . | . . . Hacking Detections . | . . . Full Trace Events . | . . . Feedback Events . | . . . Feedback Blocked . | . . . Robot Schematics Acquired . | . . . Robots Built . | . . . Authchips . | . . . Time . | . . . Total Robot Build Rating . | . . . Part Schematics Acquired . | . . . Parts Built . | . . . Authchips . | . . . Time . | . . . Total Part Build Rating . | . . . Parts Repaired . | . . . Time . | . . . Parts Recycled . | . . . Recycled Matter . | . . . Retrieved Matter . | . . . Retrieved Components . | . . . Parts Scanalyzed . | . . . Part Schematics Acquired . | . . . Parts Damaged . | . . . Bothacking | -11 -10 -10 ------------ Run | Yrd Mat Min Used RIF Installer . | . . . Robots Hacked . | . . . Non-combat . | . . . Combat . | . . . Robot Hacks Applied . | . . . Relay Couplers Released . | . . . Fabnet Peak Effective % . | . . . Robots Rewired . | . . . Allies Hacked . | . . . Hacks Repelled . | . . . Allies | -11 -10 -10 -------- Run | Yrd Mat Min Total Allies . | . . . Largest Group . | . . . Highest-Rated Group . | . . . Highest-Rated Ally . | . . . Total Orders . | . . . Ally Attacks . | . . . Total Damage . | . . . Kills . | . . . Allies Corrupted . | . . . Allies Melted . | . . . Intel | -11 -10 -10 ------- Run | Yrd Mat Min Robot Analysis Total . | . . . Derelict Logs Recovered 1 | . . 1 Drone Launches . | . . . Drone Recoveries . | . . . Exploration | -11 -10 -10 ------------- Run | Yrd Mat Min Turns Passed 526 | . 148 378 Spaces Moved 239 | 1 94 144 Core . | . . . Treads 126 | . . 126 Legs 113 | 1 94 18 Wheels . | . . . Hover . | . . . Flight . | . . . Fastest Speed 120 | 120 120 120 Average Speed 141 | 120 120 155 Slowest Speed 160 | 120 120 160 Overloaded Moves . | . . . Propulsion Burnouts . | . . . Robots Hopped . | . . . Cave-ins Triggered . | . . . Exploration Rate (%) 19 | 2 27 30 Regions Visited 2 Branch Regions 1 Pre-discovered Areas . | . . . Known Exits Taken . | . . . Unknown Exits Taken 2 | 1 1 . Scrap Searched . | . . . Spaces Dug . | . . . Terrain Destroyed . | . . . Melee . | . . . Projectile . | . . . AOE . | . . . Terrain Rammed . | . . . Walls Destroyed . | . . . Machines Disabled . | . . . Actions | -11 -10 -10 --------- Run | Yrd Mat Min Total 341 | . 109 232 Wait 36 | . 2 34 Move 237 | . 93 144 Hop . | . . . Pick Up 1 | . 1 . Fast Attach 3 | . 2 1 Attach 4 | . . 4 Detach 1 | . 1 . Swap . | . . . Drop . | . . . Fire 54 | . 10 44 Melee . | . . . Ram . | . . . Kick . | . . . Crush 5 | . . 5 Escape Stasis . | . . . Rewire . | . . . Trap . | . . . Miscellaneous . | . . . Route ------- -11/Scrapyard -10/Materials -10/Mines (discovered 2 exits: [*Mat x2]) History --------- Turn | Location | Event 1 | -11/Scrapyard | Discovered new exit (range 0) 1 | -11/Scrapyard | Entered Materials 118 | -10/Materials | Discovered new exit (range 15) 149 | -10/Materials | Entered Mines 150 | -10/Mines | Assembled infested the area 183 | -10/Mines | Discovered new exit (range 16) 227 | -10/Mines | Lost 5 parts (1p2n2w) 269 | -10/Mines | Core integrity fell below 50% 307 | -10/Mines | Build established: Mutant 442 | -10/Mines | Discovered new exit (range 7) 512 | -10/Mines | Core integrity fell below 20% 527 | -10/Mines | Destroyed by G-47 Trooper with Particle Gun Last Messages --------------- 00379_ R-06 Scavenger collects Wheel. 00380_ U-05 Engineer lays Concrete. 00382_ R-06 Scavenger destroyed. 00382_ K-01 Serf collects debris. 00382_ U-05 Engineer lays Concrete. 00385_ K-01 Serf collects debris. 00392_ as-31805 destroyed. 00395_ Slammed into K-01 Serf. 00398_ K-01 Serf collects debris. 00400_ Slammed into K-01 Serf. 00412_ U-05 Engineer builds a Wall. 00442_ EXIT=FOUND 00472_ U-05 Engineer lays Concrete. 00488_ Acquired derelict log, extracted data. Data stored: Mines entrances (x2). 00507_ Lgt. Treads destroyed. 00507_ Lgt. Ion Engine destroyed. 00514_ Heat Sink melted. 00514_ G-34 Mercenary destroyed. 00517_ Acquired 3 matter. Map ----- +----------------------------------------------------+ | ???# #???# #???# ##### ####### % | | ???# #???# ##?## ## ## % | | ??## ##### ### %## ##%####### % | | ?## ## #%# # ### | | ?# #### # # # # | | ?# < #### ## # ###### | | ?# #??###?????? | | ?# % % %#??????????? | | ?# #### ######??????????? | | ?## ##??## ## ####????????????? | | ??###?????## #### ###?????????????? | | ???????????## #??# #???????????????? | | ????????????# #??# #???????????????? | | ????????????# #??# #???????????????? | | ????????????# #??# #???????????????? | | ????????????# #??# #???????????????? | | ????????????# #??# #???????????????? | | ????????????# #??# #???????????????? | | ???????##???# #??# #???????????????? | | ??????## ### #??# #???????????????? | | ?## ??# #??# #???????????????? | | ?# *#??? ????????????????? | | ?# ###%#??? ????????????????? | | ?# ??#=#?????????????????????? | | ?## ##g#### #???????????????? | | ??#### @ #???????????????? | | ?????## #???????????????? | | ??????## ##### #???????????? | | ???????## ##????????????????????? | | ????????# ##?????????????????????? | | ??????? #??????????????????????? | | ?????? #??????????????????????? | | ????? ??????????????????????? | | ???? ## ??????????????????????? | | ??? #?## ??????????????????????? | | ?? ???## ??????????????????????? | | ?? ?????## ??????????????????????? | | ???????????# ??????????????????????? | | ???????????# ??????????????????????? | | ????????????# ??????????????????????? | | ????????????? ??????????????????????? | | ?????????????????????????????????????? | | ?????????????????????????????????????? | | ?????????????????????????????????????? | | ?????????????????????????????????????? | | ?????????????????????????????????????? | | ?????????????????????????????????????? | | ?????????????????????????????????????? | | ?????????????????????????????????????? | | ?????????????????????????????????????? | +----------------------------------------------------+ Best States ------------- Heat Dissipation 25 Energy Generation 10 Energy Capacity 125 Matter Stores 300 Matter Capacity 300 Sight Range 16 Terrain Scan Density 10 Armor Coverage 150 Evasion (%) 55 Targeting Accuracy 5 Recoil Reduction 2 Item Schematics ----------------- None Robot Schematics ------------------ None Fabricated ------------ Nothing Alien Tech Used ----------------- None Achievements -------------- None Challenges ------------ None Game ------ Seed AlertScanTendrils Manual? 0 Play Time 00:08:18 Cumulative 129.1 hours Start 2024.09.11 @ 15:08:52 End 2024.09.11 @ 15:15:18 Sessions 1 Manual Loads 0 Difficulty Rogue Special Mode None Game No. 209 Rogue 208 Adventurer 1 Explorer 0 Win Type - Total 1 Types 1/0/0/0/0/0/0/0/0 Lore% 66 Gallery% 67 Achievement% 50 Wizard Run 0 Options --------- Layout 1 ASCII 0 Keyboard 0 Movement Mouse Keybinds 0 Fullscreen 2 Font 20/SmallcapsGlow Map View 54x42 Zoom Use 0% Tactical HUD 1 Map Filters NONE Filters NONE Steam 0 RUN: e8e3e9b5-e6b2-4c86-8c58-cd1188a0f58b